bitfinex-derivatives/quotes_BTCF0:USTF0_20250509
["timestamp","ask_amount","ask_price","bid_price","bid_amount"]
[1746774416158,1e-07,103440.0,103430.0,0.9168171]
[1746774416357,1e-07,103440.0,103430.0,1.02476346]
[1746774416749,1e-07,103440.0,103430.0,0.9168171]
[1746774417057,1e-07,103440.0,103430.0,1.02476346]
[1746774417254,1e-07,103440.0,103430.0,0.9168171]
[1746774417657,0.0315001,103440.0,103430.0,0.9168171]
[1746774418554,0.2576585,103440.0,103430.0,0.9168171]
[1746774418753,0.36560486,103440.0,103430.0,0.9168171]
[1746774418949,0.36560486,103440.0,103430.0,0.7761771]
[1746774419160,0.52560486,103440.0,103430.0,0.5853771]
[1746774419365,0.52560476,103440.0,103430.0,0.5853771]
[1746774420053,0.52560476,103440.0,103430.0,0.6155771]
[1746774420253,0.2576584,103440.0,103430.0,0.6155771]
[1746774421163,0.4176584,103440.0,103430.0,0.6155771]
[1746774423366,0.2576584,103440.0,103430.0,0.6155771]
[1746774424764,0.0643,103440.0,103430.0,0.72352346]
[1746774426166,0.0643,103440.0,103430.0,0.75442346]
[1746774426361,0.0315,103440.0,103430.0,0.75442346]
[1746774427467,0.0633,103440.0,103430.0,0.75642346]
[1746774427969,0.0315,103440.0,103430.0,0.75642346]
[1746774428263,0.0315,103440.0,103430.0,0.91642346]
[1746774428670,0.0633,103440.0,103430.0,0.91642346]
[1746774428962,0.0633,103440.0,103430.0,0.88552346]
[1746774430173,0.0633,103440.0,103430.0,0.7775771]
[1746774430371,0.0633,103440.0,103430.0,0.88552346]
[1746774432772,0.2566584,103440.0,103430.0,0.88552346]
[1746774432970,0.0633,103440.0,103430.0,0.7775771]
[1746774433171,0.0633,103440.0,103430.0,0.88552346]
[1746774433373,0.2566584,103440.0,103430.0,0.7775771]
[1746774433574,0.2566584,103440.0,103430.0,0.88552346]
[1746774433774,0.0633,103440.0,103430.0,0.7775771]
[1746774434072,0.2566584,103440.0,103430.0,0.88552346]
[1746774434267,0.0633,103440.0,103430.0,0.6175771]
[1746774434480,0.2566584,103440.0,103430.0,0.6175771]
[1746774434681,0.2566584,103440.0,103430.0,0.72552346]
[1746774434882,0.0633,103440.0,103430.0,0.72552346]
[1746774435587,0.2566584,103440.0,103430.0,0.72552346]
[1746774435990,0.2566584,103440.0,103430.0,0.6175771]
[1746774436183,0.2566584,103440.0,103430.0,0.72552346]
[1746774436888,0.0633,103440.0,103430.0,0.72552346]
[1746774437786,0.2566584,103440.0,103430.0,0.72552346]
[1746774437988,0.0633,103440.0,103430.0,0.72552346]
[1746774438484,0.2566584,103440.0,103430.0,0.72552346]
[1746774438791,0.0633,103440.0,103430.0,0.72552346]
[1746774438988,0.2566584,103440.0,103430.0,0.72552346]
[1746774439186,0.0633,103440.0,103430.0,0.72552346]
[1746774439691,0.2566584,103440.0,103430.0,0.72552346]
[1746774441087,0.2566584,103440.0,103430.0,0.88552346]
[1746774441583,0.0633,103440.0,103430.0,0.88552346]
[1746774442084,0.0371,103450.0,103440.0,0.1933584]
[1746774442279,0.1016,103450.0,103440.0,0.72330476]
[1746774442488,0.1016,103450.0,103440.0,0.75500476]
[1746774442683,0.2949397,103450.0,103440.0,0.6470584]
[1746774442884,0.2949397,103450.0,103440.0,0.75500476]
[1746774443085,0.1016,103450.0,103440.0,0.75500476]
[1746774443293,0.1016,103450.0,103440.0,0.91500476]
[1746774444495,0.2949397,103450.0,103440.0,0.91500476]
[1746774444698,0.1016,103450.0,103440.0,0.91500476]
[1746774444898,0.1016,103450.0,103440.0,0.8070584]
[1746774445097,0.1016,103450.0,103440.0,0.6470584]
[1746774445297,0.1016,103450.0,103440.0,0.75500476]
[1746774445502,0.004,103450.0,103440.0,0.75500476]
[1746774448403,0.004,103450.0,103440.0,0.6470584]
[1746774448603,0.004,103450.0,103440.0,0.75500476]
[1746774449108,0.1973397,103450.0,103440.0,0.6470584]
[1746774449305,0.004,103450.0,103440.0,0.75500476]
[1746774450096,0.004,103450.0,103440.0,0.91500476]
[1746774452411,0.004,103450.0,103440.0,0.75500476]
[1746774453007,0.004,103450.0,103440.0,0.6470584]
[1746774453207,0.004,103450.0,103440.0,0.91500476]
[1746774454410,0.37952717,103460.0,103450.0,0.1933397]
[1746774454603,0.37952717,103460.0,103450.0,0.62977435]
[1746774455307,0.37469105,103460.0,103450.0,0.64489018]
[1746774456211,0.37469105,103460.0,103450.0,0.65435362]
[1746774456509,0.37469105,103460.0,103450.0,0.65405543]
[1746774457010,0.32635815,103460.0,103450.0,0.65405543]
[1746774457513,0.27802785,103460.0,103450.0,0.65405543]
[1746774458198,0.08470615,103460.0,103450.0,0.65405543]
[1746774458602,0.27802715,103460.0,103450.0,0.65405543]
[1746774459302,0.38597351,103460.0,103450.0,0.26095543]
[1746774459605,0.38597351,103460.0,103450.0,0.62175543]
[1746774459803,0.27802715,103460.0,103450.0,0.62175543]
[1746774460109,0.43802715,103460.0,103450.0,0.62175625]
[1746774460314,0.16,103460.0,103450.0,0.76050261]
[1746774460616,0.16,103460.0,103450.0,0.65255625]
[1746774460812,0.16,103460.0,103450.0,0.76050261]
[1746774461107,0.224621,103460.0,103450.0,0.76050261]
[1746774461307,0.0313,103460.0,103450.0,0.76050261]
[1746774462712,0.224621,103460.0,103450.0,0.76050261]
[1746774463215,0.224621,103460.0,103450.0,0.65255625]
[1746774464206,0.257721,103460.0,103450.0,0.63744042]
[1746774464407,0.0644,103460.0,103450.0,0.63744042]
[1746774465116,0.0644,103460.0,103450.0,0.63743964]
[1746774465416,0.0644,103460.0,103450.0,0.745386]
[1746774465616,0.0644,103460.0,103450.0,0.63743964]
[1746774466416,0.02223227,103460.0,103450.0,0.745386]
[1746774467312,0.40978594,103470.0,103450.0,0.55234449]
[1746774467504,0.36145924,103470.0,103460.0,0.616821]
[1746774467708,0.36145924,103470.0,103460.0,0.66075569]
[1746774468816,0.36145924,103470.0,103460.0,0.67566355]
[1746774469319,0.36145924,103470.0,103460.0,0.66075569]
[1746774469520,0.39255924,103470.0,103460.0,0.66075569]
[1746774470013,0.19924124,103470.0,103460.0,0.66075569]
[1746774470213,0.39254364,103470.0,103460.0,0.6749806]
[1746774470413,0.39254364,103470.0,103460.0,0.67498057]
[1746774471014,0.29406299,103470.0,103460.0,0.67498057]
[1746774471819,0.29406299,103470.0,103460.0,0.6898594]
[1746774472125,0.29406299,103470.0,103460.0,0.68985939]
[1746774472828,0.10076059,103470.0,103460.0,0.68985939]
[1746774473025,0.29406299,103470.0,103460.0,0.68985939]
[1746774473225,0.10076059,103470.0,103460.0,0.68985939]
[1746774473423,0.00386059,103470.0,103460.0,0.79780575]
[1746774473722,0.004,103480.0,103470.0,0.1933024]
[1746774473723,0.2218481,103480.0,103470.0,0.1933024]
[1746774474023,0.4151318,103480.0,103470.0,0.75201888]
[1746774474219,0.2218481,103480.0,103470.0,0.75201888]
[1746774474428,0.1265481,103480.0,103470.0,0.75201888]
[1746774474616,0.31499613,103480.0,103470.0,0.75201888]
[1746774474816,0.12171243,103480.0,103470.0,0.64407252]
[1746774475016,0.34499613,103480.0,103470.0,0.75201888]
[1746774475221,0.34499613,103480.0,103470.0,0.91201888]
[1746774475624,0.15171243,103480.0,103470.0,0.91201888]
[1746774475817,0.15171243,103480.0,103470.0,0.91201869]
[1746774476628,0.12171243,103480.0,103470.0,0.91201869]
[1746774477224,0.14727938,103490.0,103470.0,1.17330265]
[1746774477532,0.38041825,103500.0,103490.0,0.193265]
[1746774477723,0.46203075,103500.0,103490.0,0.59619851]
[1746774477927,0.46203075,103500.0,103490.0,0.62739851]
[1746774478225,0.46203075,103500.0,103490.0,0.64233493]
[1746774478617,0.46203075,103500.0,103490.0,0.65210811]
[1746774479130,0.46203075,103500.0,103490.0,0.61113493]
[1746774480624,0.46203075,103500.0,103490.0,0.64303493]
[1746774481625,0.46203075,103500.0,103490.0,0.62809851]
[1746774481833,0.56997711,103500.0,103490.0,0.59619851]
[1746774482130,0.56997711,103500.0,103490.0,0.59619672]
[1746774482429,0.46203075,103500.0,103490.0,0.59619672]
[1746774483928,0.41371825,103500.0,103490.0,0.59619672]
[1746774484122,0.41371825,103500.0,103490.0,0.62729672]
[1746774487929,0.4843542,103500.0,103490.0,0.62729672]
[1746774488431,0.41371825,103500.0,103490.0,0.62729672]
[1746774491436,0.4843542,103500.0,103490.0,0.62729672]
[1746774491644,0.4843542,103500.0,103490.0,0.62729662]
[1746774492125,0.41371825,103500.0,103490.0,0.62729662]
[1746774492329,0.41371825,103500.0,103490.0,0.64194878]
[1746774493640,0.4843542,103500.0,103490.0,0.62729662]
[1746774494636,0.91579015,103500.0,103490.0,0.04213162]
[1746774494841,0.1932837,103480.0,103470.0,0.6024193]
[1746774495037,0.1932837,103480.0,103470.0,0.6347193]
[1746774495341,0.45641965,103480.0,103470.0,0.6347193]
[1746774495540,0.3857837,103480.0,103470.0,0.6347193]
[1746774495739,0.45641965,103480.0,103470.0,0.6347193]
[1746774496133,0.32691965,103480.0,103470.0,0.4247]
[1746774496333,0.32691965,103480.0,103470.0,0.6180024]
[1746774496531,0.2562837,103480.0,103470.0,0.6180024]
[1746774496939,0.32691965,103480.0,103470.0,0.4247]
[1746774497145,0.48691965,103480.0,103470.0,0.6180024]
[1746774497438,0.9183556,103480.0,103470.0,0.0316]
[1746774497646,0.4162837,103480.0,103470.0,0.0316]
[1746774497943,0.4162837,103480.0,103470.0,0.5857024]
[1746774498152,0.2562837,103480.0,103470.0,0.6169024]
[1746774498339,0.36397512,103480.0,103470.0,0.6315604]
[1746774499043,0.36397512,103480.0,103470.0,0.6169024]
[1746774499244,0.52397512,103480.0,103470.0,0.2561024]
[1746774499544,0.4162837,103480.0,103470.0,0.2561024]
[1746774499744,0.52397512,103480.0,103470.0,0.2561024]
[1746774499944,0.52397512,103480.0,103470.0,0.0628]
[1746774500140,0.36397512,103480.0,103470.0,0.0628]
[1746774500344,0.36397512,103480.0,103470.0,0.2561024]
[1746774500640,0.36397512,103480.0,103470.0,0.0628]
[1746774501343,0.36397512,103480.0,103470.0,0.4236]
[1746774501746,0.72477512,103480.0,103470.0,0.0316]
[1746774502238,0.88477512,103480.0,103470.0,0.0316]
[1746774503146,0.7770837,103480.0,103470.0,0.0316]
[1746774503346,0.88477512,103480.0,103470.0,0.0316]
[1746774503545,0.52397512,103480.0,103470.0,0.0316]
[1746774504543,1.20307512,103480.0,103470.0,0.0316]
[1746774506044,1.56387512,103480.0,103470.0,0.0316]
[1746774506847,1.56387512,103480.0,103470.0,0.04248821]
[1746774507547,0.88477512,103480.0,103470.0,0.04248821]
[1746774508246,0.98141512,103480.0,103470.0,0.01088821]
[1746774508648,0.88477512,103480.0,103470.0,0.01088821]
[1746774509047,0.7770837,103480.0,103470.0,0.01088821]
[1746774509346,0.88477512,103480.0,103470.0,0.0327]
[1746774510249,0.88477512,103480.0,103470.0,0.04349157]
[1746774510448,0.7770837,103480.0,103470.0,0.04349157]
[1746774510649,0.88477512,103480.0,103470.0,0.04349157]
[1746774511150,0.7770837,103480.0,103470.0,0.04349157]
[1746774511352,0.88477512,103480.0,103470.0,0.07359157]
[1746774511540,0.16,103480.0,103470.0,0.73538539]
[1746774511846,0.3532837,103480.0,103470.0,0.65819397]
[1746774512047,0.16,103480.0,103470.0,0.81830044]
[1746774512246,0.289914,103490.0,103480.0,0.1932837]
[1746774512550,0.289914,103490.0,103480.0,0.62718174]
[1746774512551,0.41277353,103490.0,103480.0,0.62718174]
[1746774512747,0.44427353,103490.0,103480.0,0.62718174]
[1746774513353,0.41277353,103490.0,103480.0,0.62718174]
[1746774513745,0.36445433,103490.0,103480.0,0.62718174]
[1746774513945,0.36445433,103490.0,103480.0,0.6272772]
[1746774515549,0.36445433,103490.0,103480.0,0.62731966]
[1746774515855,0.38198622,103490.0,103480.0,0.62731966]
[1746774516055,0.2742948,103490.0,103480.0,0.62731966]
[1746774516358,0.2415948,103490.0,103480.0,0.62731966]
[1746774518257,0.2415948,103490.0,103480.0,0.78731966]
[1746774519261,0.2736948,103490.0,103480.0,0.62731966]
[1746774519453,0.2415948,103490.0,103480.0,0.62731966]
[1746774520952,0.2415948,103490.0,103480.0,0.6272615]
[1746774523258,0.2415948,103490.0,103480.0,0.7872615]
[1746774523755,1.2068076,103500.0,103490.0,0.193265]
[1746774524062,1.2068076,103500.0,103490.0,0.6596428]
[1746774524363,1.2392076,103500.0,103490.0,0.6596428]
[1746774524662,1.2392076,103500.0,103490.0,0.65955095]
[1746774525460,1.23775745,103500.0,103490.0,0.65955095]
[1746774525661,1.34544887,103500.0,103490.0,0.65955095]
[1746774526862,1.34785887,103500.0,103490.0,0.65955095]
[1746774527058,1.34785887,103500.0,103490.0,0.29875095]
[1746774527462,1.24016745,103500.0,103490.0,0.29875095]
[1746774527762,1.34785887,103500.0,103490.0,0.29875095]
[1746774528861,1.24016745,103500.0,103490.0,0.29875095]
[1746774529057,1.34785887,103500.0,103490.0,0.29875095]
[1746774530160,1.34785887,103500.0,103490.0,0.45875095]
[1746774531164,1.34785887,103500.0,103490.0,0.29875095]
[1746774531867,1.24016745,103500.0,103490.0,0.29875095]
[1746774532161,1.17566745,103500.0,103490.0,0.29875095]
[1746774532365,1.28335887,103500.0,103490.0,0.29875095]
[1746774533061,1.31545887,103500.0,103490.0,0.29890513]
[1746774533565,1.24066745,103500.0,103490.0,0.29890513]
[1746774535765,1.31130751,103500.0,103490.0,0.29890513]
[1746774535965,1.24066745,103500.0,103490.0,0.29890513]
[1746774536465,1.31130751,103500.0,103490.0,0.29890513]
[1746774536965,1.74274757,103500.0,103490.0,0.07464013]
[1746774537166,1.90274757,103500.0,103490.0,0.04394013]
[1746774537666,1.22364757,103500.0,103490.0,0.01104013]
[1746774539766,1.29771929,103500.0,103490.0,0.01104013]
[1746774540172,1.19945084,103500.0,103490.0,0.01104013]
[1746774540658,0.1933024,103470.0,103460.0,0.42480443]
[1746774540857,0.1933024,103470.0,103460.0,0.72964633]
[1746774541059,0.2551024,103470.0,103460.0,0.72964633]
[1746774541872,0.2853024,103470.0,103460.0,0.76314633]
[1746774542171,0.2853024,103470.0,103460.0,0.76414633]
[1746774542561,0.2544024,103470.0,103460.0,0.76414633]
[1746774542770,0.1933024,103470.0,103460.0,0.76414633]
[1746774543175,0.2235024,103470.0,103460.0,0.76414633]
[1746774543869,0.1933024,103470.0,103460.0,0.76414633]
[1746774544564,0.1933024,103470.0,103460.0,0.87182225]
[1746774546272,0.1933024,103470.0,103460.0,1.03182225]
[1746774547071,0.1933024,103470.0,103460.0,0.92414633]
[1746774547264,0.1933024,103470.0,103460.0,1.03182225]
[1746774548275,0.1933024,103470.0,103460.0,0.92414633]
[1746774548569,0.1933024,103470.0,103460.0,1.03182225]
[1746774549870,0.1933024,103470.0,103460.0,0.92414633]
[1746774550069,0.1933024,103470.0,103460.0,1.03182225]
[1746774550270,0.1933024,103470.0,103460.0,0.92414633]
[1746774550470,0.1933024,103470.0,103460.0,1.03182225]
[1746774551370,0.1933024,103470.0,103460.0,0.87182225]
[1746774552466,0.2384738,103480.0,103460.0,0.67851035]
[1746774552671,0.3834445,103480.0,103470.0,0.6169024]
[1746774552873,0.3532445,103480.0,103470.0,0.6169024]
[1746774553173,0.3843445,103480.0,103470.0,0.6169024]
[1746774553472,0.3843445,103480.0,103470.0,0.6277939]
[1746774553680,0.2416196,103480.0,103470.0,0.6277939]
[1746774554171,0.1932956,103480.0,103470.0,0.6277939]
[1746774554368,0.97082046,103490.0,103480.0,0.1932837]
[1746774554674,0.97082046,103490.0,103480.0,0.76665112]
[1746774555267,1.00092046,103490.0,103480.0,0.6589752]
[1746774555677,1.00092046,103490.0,103480.0,0.67364002]
[1746774555875,0.77754816,103490.0,103480.0,0.67364002]
[1746774556072,0.97081316,103490.0,103480.0,0.83364002]
[1746774556269,0.97081316,103490.0,103480.0,0.94131594]
[1746774556575,0.97081316,103490.0,103480.0,0.83364002]
[1746774556873,0.91081316,103490.0,103480.0,0.83364002]
[1746774557065,0.94151316,103490.0,103480.0,0.83364002]
[1746774557266,0.94151316,103490.0,103480.0,0.67364002]
[1746774557675,0.843065,103490.0,103480.0,0.6589752]
[1746774557969,0.874165,103490.0,103480.0,0.6589752]
[1746774558577,0.255065,103490.0,103480.0,0.6589752]
[1746774558976,0.255065,103490.0,103480.0,0.6591091]
[1746774559677,0.193265,103490.0,103480.0,0.65923555]
[1746774560377,0.193265,103490.0,103480.0,0.76691147]
[1746774560568,0.193265,103490.0,103480.0,0.78177831]
[1746774561073,0.193265,103490.0,103480.0,0.67410239]
[1746774562080,0.195675,103490.0,103480.0,0.67410239]
[1746774562275,0.00241,103490.0,103480.0,0.94177831]
[1746774562679,0.195675,103490.0,103480.0,0.94177831]
[1746774563272,0.195675,103490.0,103480.0,0.78177831]
[1746774563577,0.00241,103490.0,103480.0,0.78177831]
[1746774564380,0.00241,103490.0,103480.0,0.67428188]
[1746774564581,0.00241,103490.0,103480.0,0.7819578]
[1746774565690,0.00241,103490.0,103480.0,0.8785898]
[1746774565880,0.106,103500.0,103490.0,0.193265]
[1746774566071,0.106,103500.0,103490.0,0.88335634]
[1746774566272,0.106,103500.0,103490.0,1.0388991]
[1746774566879,0.10116643,103500.0,103490.0,1.0388991]
[1746774567080,0.10116643,103500.0,103490.0,0.77122318]
[1746774567277,0.001,103510.0,103500.0,0.1932463]
[1746774567481,0.04986798,103520.0,103510.0,0.1932277]
[1746774567669,0.04986798,103520.0,103510.0,0.59835552]
[1746774567872,0.24307698,103520.0,103510.0,0.61322236]
[1746774568073,0.27587698,103520.0,103510.0,0.77322236]
[1746774568873,0.08266798,103520.0,103510.0,0.77322236]
[1746774569277,0.08266798,103520.0,103510.0,0.88089828]
[1746774569581,0.24266798,103520.0,103510.0,0.73057705]
[1746774569785,0.24266798,103520.0,103510.0,0.62290113]
[1746774569986,0.43587698,103520.0,103510.0,0.62290113]
[1746774570190,0.27587698,103520.0,103510.0,0.61322254]
[1746774570384,0.36528492,103520.0,103510.0,0.64462254]
[1746774570583,0.257609,103520.0,103510.0,0.64462254]
[1746774571086,0.417609,103520.0,103510.0,0.64562254]
[1746774571384,0.417609,103520.0,103510.0,0.64562388]
[1746774571580,0.2244,103520.0,103510.0,0.64662388]
[1746774571785,0.1928,103520.0,103510.0,0.64662388]
[1746774572185,0.0328,103520.0,103510.0,0.64662388]
[1746774572984,0.0328,103520.0,103510.0,0.64662261]
[1746774573386,0.0328,103520.0,103510.0,0.65640043]
[1746774573387,0.36388492,103520.0,103510.0,0.65640043]
[1746774573586,0.256209,103520.0,103510.0,0.65640043]
[1746774574290,0.416209,103520.0,103510.0,0.22142261]
[1746774574492,0.52388492,103520.0,103510.0,0.22142261]
[1746774574881,0.416209,103520.0,103510.0,0.58222261]
[1746774575081,0.52388492,103520.0,103510.0,0.22142261]
[1746774575277,0.416209,103520.0,103510.0,0.22142261]
[1746774575882,0.416209,103520.0,103510.0,0.28302261]
[1746774576090,0.52388492,103520.0,103510.0,0.28302261]
[1746774576292,0.52388492,103520.0,103510.0,0.64382261]
[1746774576586,0.416209,103520.0,103510.0,0.64382261]
[1746774577093,0.52388492,103520.0,103510.0,0.64382261]
[1746774577990,0.416209,103520.0,103510.0,0.64382261]
[1746774578292,0.52388492,103520.0,103510.0,0.64382261]
[1746774578693,0.416209,103520.0,103510.0,0.64382261]
[1746774579189,0.416209,103520.0,103510.0,0.22142261]
[1746774579387,1.66038892,103520.0,103510.0,0.02819491]
[1746774579583,1.552713,103520.0,103510.0,0.02819491]
[1746774579789,1.91038892,103520.0,103510.0,0.02819491]
[1746774579990,1.802713,103520.0,103510.0,0.02819491]
[1746774580192,1.456109,103520.0,103510.0,0.22142261]
[1746774580394,1.095309,103520.0,103510.0,0.22142261]
[1746774580703,1.20298492,103520.0,103510.0,0.22142261]
[1746774581390,1.095309,103520.0,103510.0,0.02819491]
[1746774581593,1.095309,103520.0,103510.0,0.02719491]
[1746774581890,1.20298492,103520.0,103510.0,0.02619692]
[1746774583286,1.095309,103520.0,103510.0,0.02619692]
[1746774583489,1.095309,103520.0,103510.0,0.58022458]
[1746774583690,1.20298492,103520.0,103510.0,0.58022458]
[1746774583890,1.20298492,103520.0,103510.0,0.61042458]
[1746774584398,1.095309,103520.0,103510.0,0.61042458]
[1746774584899,1.20298492,103520.0,103510.0,0.61042458]
[1746774585102,1.095309,103520.0,103510.0,0.61042458]
[1746774585298,1.095309,103520.0,103510.0,0.58022458]
[1746774585499,1.20298492,103520.0,103510.0,0.58022458]
[1746774585689,1.20298492,103520.0,103510.0,0.38699688]
[1746774585891,1.19815087,103520.0,103510.0,0.38699688]
[1746774586292,1.19815087,103520.0,103510.0,0.58022458]
[1746774586699,1.09047495,103520.0,103510.0,0.58022458]
[1746774587103,1.19815087,103520.0,103510.0,0.58022436]
[1746774587402,1.09047495,103520.0,103510.0,0.58022436]
[1746774587996,1.09047495,103520.0,103510.0,0.38699666]
[1746774588705,1.09047495,103520.0,103510.0,0.38699667]
[1746774588903,1.09047495,103520.0,103510.0,0.58022437]
[1746774589210,1.09047495,103520.0,103510.0,0.61062437]
[1746774590208,1.09047495,103520.0,103510.0,0.41739667]
[1746774590409,1.09047495,103520.0,103510.0,0.61062437]
[1746774591498,1.09047495,103520.0,103510.0,0.64062437]
[1746774591699,1.19815087,103520.0,103510.0,0.41739667]
[1746774591899,1.09047495,103520.0,103510.0,0.41739667]
[1746774592099,1.19815087,103520.0,103510.0,0.61062437]
[1746774592301,1.09047495,103520.0,103510.0,0.61062437]
[1746774592501,1.09047495,103520.0,103510.0,0.64292437]
[1746774593907,1.09047495,103520.0,103510.0,0.64292434]
[1746774595209,0.41137495,103520.0,103510.0,0.64292434]
[1746774595604,0.41137495,103520.0,103510.0,0.64292428]
[1746774596004,0.41137495,103520.0,103510.0,0.7506002]
[1746774596209,0.38117495,103520.0,103510.0,0.64292428]
[1746774596407,0.38117495,103520.0,103510.0,0.7506002]
[1746774596807,0.38117495,103520.0,103510.0,0.64292428]
[1746774597109,0.38117495,103520.0,103510.0,0.64292421]
[1746774598013,0.16,103520.0,103510.0,0.75060013]
[1746774598209,0.16,103520.0,103510.0,0.64292351]
[1746774598408,0.1509371,103520.0,103510.0,0.6429231]
[1746774598718,0.1509371,103520.0,103510.0,0.75059901]
[1746774598909,0.1509371,103520.0,103510.0,0.64292275]
[1746774599110,0.14368705,103520.0,103510.0,0.64292275]
[1746774599309,0.226801,103530.0,103520.0,0.20805116]
[1746774599518,0.226801,103530.0,103520.0,0.64417937]
[1746774599713,0.226801,103530.0,103520.0,0.79962213]
[1746774600012,0.00341,103530.0,103520.0,0.69194615]
[1746774600208,0.3566003,103530.0,103520.0,0.69194612]
[1746774600613,0.3884003,103530.0,103520.0,0.69194612]
[1746774601012,0.38356698,103530.0,103520.0,0.79962204]
[1746774601211,0.38356698,103530.0,103520.0,0.69194611]
[1746774601915,0.4912429,103530.0,103520.0,0.10503711]
[1746774602118,0.44816698,103530.0,103520.0,0.10503711]
[1746774602509,0.5558429,103530.0,103520.0,0.10503711]
[1746774602709,0.44816698,103530.0,103520.0,0.10503711]
[1746774603317,0.5558429,103530.0,103520.0,0.10503711]
[1746774604118,0.44816698,103530.0,103520.0,0.29824611]
[1746774604318,0.5558429,103530.0,103520.0,0.31275833]
[1746774604519,0.44816698,103530.0,103520.0,0.31275833]
[1746774604819,0.44816698,103530.0,103520.0,0.11954933]
[1746774605013,0.5558429,103530.0,103520.0,0.05554933]
[1746774605518,0.44816698,103530.0,103520.0,0.05554933]
[1746774605716,0.5558429,103530.0,103520.0,0.05554933]
[1746774605918,0.5558429,103530.0,103520.0,0.04068249]
[1746774606117,0.44816698,103530.0,103520.0,0.04068249]
[1746774606514,0.5558429,103530.0,103520.0,0.04068249]
[1746774606715,1.70341882,103530.0,103520.0,0.04068249]
[1746774607015,1.70341882,103530.0,103520.0,0.05578911]
[1746774608022,1.70341882,103530.0,103520.0,0.05578968]
[1746774608919,1.70341882,103530.0,103520.0,0.04094752]
[1746774609116,0.1932277,103510.0,103500.0,0.09562236]
[1746774609419,0.30090362,103510.0,103500.0,0.12662236]
[1746774609620,0.39560362,103510.0,103500.0,0.31986866]
[1746774609818,0.2879277,103510.0,103500.0,0.31986866]
[1746774610011,0.39560362,103510.0,103500.0,0.31986866]
[1746774610213,0.55560362,103510.0,103500.0,0.31986866]
[1746774611821,0.43886314,103510.0,103500.0,0.31986866]
[1746774612116,0.54768455,103510.0,103500.0,0.31986866]
[1746774612321,0.54768455,103510.0,103500.0,0.48742236]
[1746774612618,0.54768455,103510.0,103500.0,0.68066866]
[1746774612823,0.54768455,103510.0,103500.0,0.09442236]
[1746774613023,0.44000863,103510.0,103500.0,0.28766866]
[1746774613320,0.54768455,103510.0,103500.0,0.28766866]
[1746774613508,0.54653906,103510.0,103500.0,0.28766866]
[1746774613707,0.44008918,103510.0,103500.0,0.28766866]
[1746774613907,0.5477651,103510.0,103500.0,0.28766866]
[1746774614421,0.44008918,103510.0,103500.0,0.28766866]
[1746774614617,0.5477651,103510.0,103500.0,0.28766866]
[1746774615722,0.5477651,103510.0,103500.0,0.64846866]
[1746774616321,0.44008918,103510.0,103500.0,0.64846866]
[1746774616721,0.5477651,103510.0,103500.0,0.64846866]
[1746774616922,0.5477651,103510.0,103500.0,0.28766866]
[1746774617220,0.5477651,103510.0,103500.0,0.64846866]
[1746774617418,0.5477651,103510.0,103500.0,0.61807866]
[1746774617720,0.5477651,103510.0,103500.0,0.42483236]
[1746774619117,0.43402883,103510.0,103500.0,0.42483236]
[1746774619322,0.54309736,103510.0,103500.0,0.42483236]
[1746774620121,0.54170475,103510.0,103500.0,0.42483236]
[1746774620426,0.54326393,103510.0,103500.0,0.42483236]
[1746774620828,0.54170475,103510.0,103500.0,0.42483236]
[1746774621126,0.5434305,103510.0,103500.0,0.43616279]
[1746774621518,0.5434305,103510.0,103500.0,0.09047004]
[1746774621720,1.2225305,103510.0,103500.0,0.02837004]
[1746774621921,1.11485458,103510.0,103500.0,0.02837004]
[1746774622227,1.11485458,103510.0,103500.0,0.64491634]
[1746774622420,1.22269674,103510.0,103500.0,0.28411634]
[1746774622727,1.22269674,103510.0,103500.0,0.64491634]
[1746774623625,1.22286298,103510.0,103500.0,0.64491634]
[1746774624131,1.22302922,103510.0,103500.0,0.64491634]
[1746774624429,1.22319546,103510.0,103500.0,0.64491634]
[1746774624630,1.22319546,103510.0,103500.0,0.45167004]
[1746774626227,1.11551954,103510.0,103500.0,0.45167004]
[1746774626420,1.22080475,103510.0,103500.0,0.45167004]
[1746774626617,1.11568523,103510.0,103500.0,0.45167004]
[1746774626813,1.22336115,103510.0,103500.0,0.43656279]
[1746774627028,1.11568523,103510.0,103500.0,0.43656279]
[1746774627228,1.22336115,103510.0,103500.0,0.43656279]
[1746774628231,1.11568523,103510.0,103500.0,0.45125037]
[1746774628424,1.22336115,103510.0,103500.0,0.45125037]
[1746774628728,1.11568523,103510.0,103500.0,0.45125037]
[1746774629127,1.22336115,103510.0,103500.0,0.45125037]
[1746774630632,1.22336115,103510.0,103500.0,0.09045037]
[1746774630832,1.22336115,103510.0,103500.0,0.45125037]
[1746774631032,1.22336115,103510.0,103500.0,0.09045037]
[1746774631222,1.22336115,103510.0,103500.0,0.45125037]
[1746774631527,1.11568523,103510.0,103500.0,0.45125037]
[1746774631732,1.22336115,103510.0,103500.0,0.45125058]
[1746774631923,1.22593711,103510.0,103500.0,0.64449688]
[1746774632123,1.11826119,103510.0,103500.0,0.64449688]
[1746774632923,1.11842603,103510.0,103500.0,0.45125058]
[1746774633329,1.11842603,103510.0,103500.0,0.64449688]
[1746774633539,1.05422603,103510.0,103500.0,0.64449688]
[1746774634221,1.02389199,103510.0,103500.0,0.64449688]
[1746774634422,1.03779086,103510.0,103500.0,0.7521728]
[1746774634731,1.03795682,103510.0,103500.0,0.64449688]
[1746774635031,1.02889316,103510.0,103500.0,0.64449688]
[1746774635327,1.02422517,103510.0,103500.0,0.64449578]
[1746774635725,1.02422517,103510.0,103500.0,0.71510447]
[1746774636426,1.02422517,103510.0,103500.0,0.71710447]
[1746774636823,0.34512517,103510.0,103500.0,0.71710447]
[1746774637131,0.34512517,103510.0,103500.0,0.71710408]
[1746774638425,0.34512517,103510.0,103500.0,0.71710403]
[1746774638621,0.34512517,103510.0,103500.0,0.78771272]
[1746774638832,0.34512517,103510.0,103500.0,0.78771266]
[1746774639033,0.34514447,103510.0,103500.0,0.78771266]
[1746774639225,0.34514447,103510.0,103500.0,0.71710397]
[1746774639538,0.15191677,103510.0,103500.0,0.78771266]
[1746774639832,0.15191677,103510.0,103500.0,0.75405909]
[1746774639833,0.34514447,103510.0,103500.0,0.75405909]
[1746774640835,0.34514447,103510.0,103500.0,0.75405857]
[1746774641233,0.34174009,103510.0,103500.0,0.64649476]
[1746774641428,0.34516377,103510.0,103500.0,0.75405857]
[1746774641626,0.34516377,103510.0,103500.0,0.90160627]
[1746774642837,0.34518307,103510.0,103500.0,0.90160627]
[1746774643128,0.34518307,103510.0,103500.0,0.79404246]
[1746774643333,0.34518307,103510.0,103500.0,0.90160627]
[1746774644137,0.34518307,103510.0,103500.0,0.78475857]
[1746774644331,0.34534882,103510.0,103500.0,0.78475857]
[1746774644537,0.37554882,103510.0,103500.0,0.78475857]
[1746774645033,0.37554882,103510.0,103500.0,0.67719476]
[1746774645424,0.37571457,103510.0,103500.0,0.78475857]
[1746774647234,0.37571457,103510.0,103500.0,0.67719476]
[1746774647534,0.37582685,103510.0,103500.0,0.67719476]